fUST/lending_fUST_20241013
["ID","MTS","AMOUNT","RATE_DAILY","PERIOD"]
[340196999,1728821447736,-357.6696602,0.00028782,5]
[340197000,1728821447747,-503.43342571,0.00028782,5]
[340197001,1728821447756,-573.40670331,0.00028782,5]
[340197002,1728821447766,-1000.0,0.00028782,5]
[340197003,1728821447775,-1000.0,0.00028782,5]
[340197004,1728821447785,-302.48028884,0.00028782,5]
[340197005,1728821447795,-1000.0,0.00028782,5]
[340197006,1728821447807,-1500.0,0.00028793,5]
[340197007,1728821447816,-164.397427,0.000288,8]
[340197008,1728821447825,-245.2639,0.00028835,2]
[340197009,1728821447835,-1000.0,0.00028842,5]
[340197010,1728821447844,-150.01,0.00028879,2]
[340197011,1728821447853,-12116.10602236,0.00028879,2]
[340197012,1728821447863,-1194.21750155,0.00029,120]
[340197013,1728821447872,-8981.12,0.00029,30]
[340197014,1728821447881,-151.0,0.00029,7]
[340197015,1728821447890,-151.0,0.00029,7]
[340197016,1728821447899,-151.0,0.00029,7]
[340197017,1728821447910,-400.0,0.00029,120]
[340197018,1728821447920,-152.0,0.00029,7]
[340197019,1728821447932,-204.159123,0.00029,7]
[340197020,1728821447942,-204.159123,0.00029,7]
[340197021,1728821447953,-151.0,0.00029,7]
[340197022,1728821447965,-176.412986,0.00029,7]
[340197023,1728821447976,-176.412986,0.00029,7]
[340197024,1728821447985,-151.0,0.00029,7]
[340197025,1728821447996,-151.0,0.00029,7]
[340197026,1728821448007,-151.0,0.00029,7]
[340197027,1728821448017,-151.0,0.00029,7]
[340197028,1728821448027,-2485.328354,0.00029,7]
[340197029,1728821448037,-2485.328354,0.00029,7]
[340197030,1728821448048,-151.0,0.00029,7]
[340197031,1728821448059,-187.336092,0.00029,7]
[340197032,1728821448068,-547.731077,0.00029,7]
[340197033,1728821448078,-187.336092,0.00029,7]
[340197034,1728821448088,-151.0,0.00029,7]
[340197035,1728821448098,-151.0,0.00029,7]
[340197036,1728821448109,-271.696934,0.00029,7]
[340197037,1728821448119,-271.696934,0.00029,7]
[340197038,1728821448130,-151.0,0.00029,7]
[340197039,1728821448139,-195.531126,0.00029,7]
[340197040,1728821448150,-195.531126,0.00029,7]
[340197041,1728821448160,-151.0,0.00029,7]
[340197042,1728821448171,-220.578364,0.00029,7]
[340197043,1728821448181,-220.578364,0.00029,7]
[340197044,1728821448192,-217.081087,0.00029,7]
[340197045,1728821448203,-304.384751,0.00029,7]
[340197046,1728821448214,-217.081087,0.00029,7]
[340197047,1728821448223,-304.384751,0.00029,7]
[340197048,1728821448234,-515.077807,0.00029,7]
[340197049,1728821448244,-515.077802,0.00029,7]
[340197050,1728821448253,-151.0,0.00029,7]
[340197051,1728821448263,-1142.430281,0.00029,7]
[340197052,1728821448274,-1142.430274,0.00029,7]
[340197053,1728821448284,-582.80761,0.00029,7]
[340197054,1728821448295,-582.807604,0.00029,7]
[340197055,1728821448306,-257.331106,0.00029,7]
[340197056,1728821448315,-257.331104,0.00029,7]
[340197057,1728821448326,-275.13641,0.00029,7]
[340197058,1728821448336,-275.136404,0.00029,7]
[340197059,1728821448346,-973.255888,0.00029,7]
[340197060,1728821448356,-151.0,0.00029,7]
[340197061,1728821448365,-151.0,0.00029,2]
[340197062,1728821448375,-973.255897,0.00029,7]
[340197063,1728821448385,-244.565432,0.00029,7]
[340197064,1728821448395,-244.56544,0.00029,7]
[340197065,1728821448404,-268.257743,0.00029,7]
[340197066,1728821448416,-350.865872,0.00029,7]
[340197067,1728821448426,-268.257744,0.00029,7]
[340197068,1728821448438,-350.865872,0.00029,7]
[340197069,1728821448452,-500.0,0.00029,2]
[340197070,1728821448462,-500.0,0.00029,2]
[340197071,1728821448473,-500.0,0.00029,2]
[340197072,1728821448483,-500.0,0.00029,2]
[340197073,1728821448493,-500.0,0.00029,2]
[340197074,1728821448503,-701.88673261,0.00029,2]
[340197075,1728821448514,-500.0,0.00029,2]
[340197076,1728821448524,-500.0,0.00029,2]
[340197077,1728821448533,-500.0,0.00029,2]
[340197078,1728821448543,-500.0,0.00029,2]
[340197079,1728821448553,-500.0,0.00029,2]
[340197080,1728821448563,-500.0,0.00029,2]
[340197081,1728821448574,-500.0,0.00029,2]
[340197082,1728821448584,-500.0,0.00029,2]
[340197083,1728821448593,-500.0,0.00029,2]
[340197084,1728821448602,-500.0,0.00029,2]
[340197085,1728821448612,-500.0,0.00029,2]
[340197086,1728821448621,-250.0,0.00029021,5]
[340197087,1728821448630,-250.0,0.00029021,5]
[340197088,1728821448640,-151.0,0.00029195,7]
[340197089,1728821448649,-151.0,0.00029195,7]
[340197090,1728821448659,-150.112233,0.000292,7]
[340197091,1728821448668,-3349.32,0.000293,14]
[340197092,1728821448677,-1523.78,0.000293,30]
[340197093,1728821448686,-311.3224412,0.00029315,2]
[340197094,1728821448697,-299.2079142,0.00029315,2]
[340197095,1728821448706,-413.7492508,0.00029315,2]
[340197096,1728821448715,-413.7492508,0.00029315,2]
[340197097,1728821448725,-317.3629164,0.00029315,2]
[340197098,1728821448735,-153.0,0.00029315,2]
[340197099,1728821448745,-153.0,0.00029315,2]
[340197100,1728821448755,-1500.0,0.00029346,5]
[340197101,1728821448764,-1500.0,0.00029346,5]
[340197102,1728821448774,-4292.36483422,0.00029437,2]
[340197103,1728821448784,-538.858,0.000295,2]
[340197104,1728821448793,-278.0,0.000295,2]
[340197105,1728821448803,-934.797,0.000295,2]
[340197106,1728821448812,-1157.0,0.000295,2]
[340197107,1728821448821,-150.0,0.000295,2]
[340197108,1728821448832,-350.0,0.00029568,5]
[340197109,1728821448902,-415.20545244,0.00029568,5]
[340197110,1728821448912,-500.0,0.0002959,7]
[340197111,1728821448921,-500.0,0.0002959,7]
[340197112,1728821448931,-552.55,0.0002959,7]
[340197113,1728821448941,-500.0,0.0002959,120]
[340197114,1728821448950,-500.0,0.0002959,120]
[340197115,1728821448959,-500.0,0.0002959,120]
[340197116,1728821448969,-500.0,0.0002959,120]
[340197117,1728821448979,-500.0,0.0002959,120]
[340197118,1728821448989,-500.0,0.0002959,120]
[340197119,1728821448998,-500.0,0.0002959,120]
[340197120,1728821449007,-430.71,0.0002959,120]
[340197121,1728821449019,-151.0,0.000296,7]
[340197122,1728821449028,-151.0,0.000296,7]
[340197123,1728821449038,-150.112233,0.000296,10]
[340197124,1728821449047,-7383.632,0.00029703,2]
[340197125,1728821449058,-350.865872,0.00029742,7]
[340197126,1728821449068,-1000.0,0.00029742,5]
[340197127,1728821449077,-163.654251,0.000298,7]
[340197128,1728821449087,-1901.0219236,0.000298,2]
[340197129,1728821449135,-441.57,0.0002597,10]
[340197130,1728821449146,-350.865872,0.00029742,7]
[340197131,1728821449157,-825.64612814,0.000298,2]
[340197132,1728821449189,-273.33194826,0.000298,2]
[340197133,1728821449200,-3000.0,0.0002981,2]
[340197134,1728821449210,-1245.08710776,0.0002982,2]
[340197135,1728821449223,-312.9,0.0002982,2]
[340197136,1728821449238,-1442.01289224,0.0002982,2]
[340197137,1728821449248,-3000.0,0.0002983,2]
[340197138,1728821449258,-1903.9878717,0.0002984,2]
[340197147,1728821796915,-152.0,0.0002565,2]
[340197148,1728821797054,-763.112509,0.00026234,2]
[340197149,1728821797077,-155.384485,0.000269,7]
[340197150,1728821797100,-177.606342,0.000269,7]
[340197151,1728821797124,-763.112509,0.00026919,2]
[340197152,1728821797145,-157.21942,0.0002734,7]
[340197153,1728821797168,-151.0,0.0002734,7]
[340197154,1728821797191,-356.0252,0.0002734,7]
[340197155,1728821797215,-356.0252,0.0002734,7]
[340197156,1728821797238,-300.0,0.00027396,2]
[340197157,1728821797259,-300.0,0.00027396,2]
[340197158,1728821797281,-159.092164,0.00027397,7]
[340197159,1728821797303,-356.0252,0.00027397,7]
[340197160,1728821797326,-356.0252,0.00027397,7]
[340197161,1728821797348,-356.0252,0.000275,7]
[340197162,1728821797369,-356.0252,0.000275,7]
[340197163,1728821797390,-200.0,0.00027549,15]
[340197164,1728821797411,-24900.0,0.00027603,2]
[340197165,1728821797432,-763.112509,0.00027604,2]
[340197166,1728821797453,-250.0,0.00027714,2]
[340197167,1728821797476,-250.0,0.0002779,2]
[340197168,1728821797499,-250.0,0.00027866,2]
[340197169,1728821797522,-152.0,0.000279,7]
[340197170,1728821797544,-4279.0910334,0.00027918,2]
[340197171,1728821797568,-250.0,0.00027942,2]
[340197172,1728821797591,-250.0,0.00028018,2]
[340197173,1728821797613,-180.52900643,0.00028018,2]
[340197174,1728821797636,-250.0,0.00028094,2]
[340197175,1728821797659,-250.0,0.0002817,2]
[340197176,1728821797683,-356.0252,0.00028205,7]
[340197177,1728821797706,-356.0252,0.00028205,7]
[340197178,1728821797728,-250.0,0.00028246,2]
[340197179,1728821797752,-250.0,0.00028322,2]
[340197180,1728821797775,-250.0,0.00028398,2]
[340197181,1728821797798,-356.0252,0.00028473,7]
[340197182,1728821797821,-356.0252,0.00028473,7]
[340197183,1728821797842,-250.0,0.00028474,2]
[340197184,1728821797864,-356.0252,0.000285,7]
[340197185,1728821797885,-356.0252,0.000285,7]
[340197186,1728821797911,-250.0,0.0002855,2]
[340197187,1728821797933,-250.0,0.00028626,2]
[340197188,1728821797956,-250.0,0.00028702,2]
[340197189,1728821797977,-150.0,0.00028715,2]
[340197190,1728821798004,-222.32986331,0.00028749,2]
[340197191,1728821798026,-500.0,0.00028749,2]
[340197192,1728821798050,-500.0,0.00028749,2]
[340197193,1728821798073,-196.0589193,0.00028749,2]
[340197194,1728821798096,-500.0,0.00028749,2]
[340197195,1728821798120,-500.0,0.00028749,2]
[340197196,1728821798143,-221.58781283,0.00028749,2]
[340197197,1728821798171,-500.0,0.00028749,2]
[340197198,1728821798194,-500.0,0.00028749,2]
[340197199,1728821798218,-467.62083983,0.00028749,2]
[340197200,1728821798243,-500.0,0.00028749,2]
[340197201,1728821798266,-436.13310666,0.00028749,2]
[340197202,1728821798290,-500.0,0.00028749,2]
[340197203,1728821798313,-500.0,0.00028749,2]
[340197204,1728821798336,-2910.0,0.0002875,2]
[340197205,1728821798362,-250.0,0.00028778,2]
[340197206,1728821798385,-250.0,0.00028854,2]
[340197207,1728821798410,-250.0,0.0002893,2]
[340197208,1728821798433,-356.0252,0.00029,7]
[340197209,1728821798457,-356.0252,0.00029,7]
[340197210,1728821798482,-500.0,0.00029,2]
[340197211,1728821798505,-500.0,0.00029,2]
[340197212,1728821798531,-500.0,0.00029,2]
[340197213,1728821798575,-500.0,0.00029,2]
[340197214,1728821798603,-500.0,0.00029,2]
[340197215,1728821798629,-500.0,0.00029,2]
[340197216,1728821798654,-500.0,0.00029,2]
[340197217,1728821798681,-250.0,0.00029006,2]
[340197218,1728821798704,-200.0,0.0002908,20]
[340197219,1728821798859,-250.0,0.00029082,2]
[340197220,1728821798885,-250.0,0.00029158,2]
[340197221,1728821798912,-152.0,0.0002945,5]
[340197222,1728821798936,-420.0,0.00029606,2]
[340197223,1728821798962,-356.0252,0.00029742,7]
[340197224,1728821798987,-356.0252,0.00029742,7]
[340197225,1728821799012,-3000.0,0.000298,2]
[340197226,1728821799036,-1016.474909,0.000298,2]
[340197227,1728821799059,-153.0,0.00029802,2]
[340197228,1728821799085,-153.0,0.00029802,2]
[340197229,1728821799107,-153.0,0.00029802,2]
[340197230,1728821799132,-153.0,0.00029802,2]
[340197231,1728821799156,-153.0,0.00029802,2]
[340197232,1728821799183,-153.0,0.00029802,2]
[340197233,1728821799207,-153.0,0.00029802,2]
[340197234,1728821799231,-153.0,0.00029802,2]
[340197235,1728821799258,-153.0,0.00029802,2]
[340197236,1728821799285,-153.0,0.00029802,2]
[340197237,1728821799310,-153.0,0.00029802,2]
[340197238,1728821799336,-153.0,0.00029802,2]
[340197239,1728821799359,-153.0,0.00029802,2]
[340197240,1728821799382,-153.0,0.00029802,2]
[340197241,1728821799405,-153.0,0.00029802,2]
[340197242,1728821799428,-153.0,0.00029802,2]
[340197243,1728821799451,-153.0,0.00029802,2]
[340197244,1728821799475,-153.0,0.00029802,2]
[340197245,1728821799502,-153.0,0.00029802,2]
[340197246,1728821799524,-153.0,0.00029802,2]
[340197247,1728821799547,-153.0,0.00029802,2]
[340197248,1728821799572,-153.0,0.00029802,2]
[340197249,1728821799596,-153.0,0.00029802,2]
[340197250,1728821799619,-153.0,0.00029802,2]
[340197251,1728821799644,-153.0,0.00029802,2]
[340197252,1728821799669,-153.0,0.00029802,2]
[340197253,1728821799699,-153.0,0.00029802,2]
[340197254,1728821799723,-153.0,0.00029802,2]
[340197255,1728821799747,-153.0,0.00029802,2]
[340197256,1728821799770,-153.0,0.00029802,2]
[340197257,1728821799794,-153.0,0.00029802,2]
[340197258,1728821799818,-153.0,0.00029802,2]
[340197259,1728821799841,-153.0,0.00029802,2]
[340197260,1728821799865,-153.0,0.00029802,2]
[340197261,1728821799887,-153.0,0.00029802,2]
[340197262,1728821799913,-3000.0,0.0002981,2]
[340197263,1728821799936,-3000.0,0.0002982,2]
[340197264,1728821799959,-3000.0,0.0002983,2]
[340197265,1728821799980,-182.42681526,0.00029839,2]
[340197266,1728821800004,-1180.76878425,0.00029839,2]
[340197267,1728821800026,-3000.0,0.0002984,2]
[340197268,1728821800050,-151.0,0.0002985,7]
[340197269,1728821800072,-151.0,0.0002985,7]
[340197270,1728821800098,-151.0,0.0002985,7]
[340197271,1728821800121,-151.0,0.0002985,7]
[340197272,1728821800146,-271.696934,0.0002985,7]
[340197273,1728821800172,-271.696934,0.0002985,7]
[340197274,1728821800195,-151.0,0.0002985,7]
[340197275,1728821800220,-3000.0,0.0002985,2]
[340197276,1728821800244,-151.0,0.0002986,7]
[340197277,1728821800269,-3000.0,0.0002986,2]
[340197278,1728821800295,-361.8968005,0.00029863,2]
[340197279,1728821800318,-3000.0,0.0002987,2]
[340197280,1728821800342,-151.0,0.0002988,7]
[340197281,1728821800369,-3000.0,0.0002988,2]
[340197282,1728821800393,-3000.0,0.0002989,2]
[340197283,1728821800419,-336.05,0.0002989,10]
[340197284,1728821800443,-280.04,0.0002989,10]
[340197285,1728821800465,-248.56,0.000299,3]
[340197286,1728821800489,-248.56,0.000299,3]
[340197287,1728821800512,-191.54,0.000299,10]
[340197288,1728821800644,-856.89510323,0.000299,2]
[340197292,1728822041597,349.55,0.00024,2]
[340197293,1728822167245,178.02,0.00024,2]
[340197296,1728822201308,200.0,0.00024,2]
[340197301,1728822434147,-695.234071,0.00024757,2]
[340197302,1728822434170,-695.234071,0.00025442,2]
[340197303,1728822434192,-209.88429212,0.00025473,2]
[340197304,1728822520185,5150.77806953,0.00023,2]
[340197305,1728822537920,166.666666,0.00023982,2]
[340197306,1728822548189,-166.666666,0.00024636,2]
[340197307,1728822548216,-300.0,0.00024999,2]
[340197308,1728822548243,-300.0,0.00024999,2]
[340197309,1728822548269,-19597.37246871,0.00025,2]
[340197310,1728822550122,-8774.758496,0.00025,2]
[340197311,1728822555099,-16708.0054046,0.00025,2]
[340197312,1728822555121,-5320.61394884,0.00025,2]
[340197313,1728822565159,-2151.94217545,0.00025,2]
[340197314,1728822565179,-273.80847385,0.00025,120]
[340197315,1728822565200,-19546.23604746,0.0002509,2]
[340197316,1728822565221,-166.666666,0.00025289,2]
[340197317,1728822565243,-150.0,0.00025334,2]
[340197318,1728822565265,-1118.24991808,0.00025373,2]
[340197352,1728822632412,-400.0,0.00025469,3]
[340197354,1728822632421,-4398.00840799,0.00025473,2]
[340197356,1728822632431,-300.0,0.00025549,2]
[340197358,1728822632441,-300.0,0.00025549,2]
[340197361,1728822632451,-3237.70242374,0.00025549,2]
[340197363,1728822632460,-189.29193801,0.0002555,2]
[340197365,1728822632469,-29227.34840289,0.0002555,2]
[340197367,1728822632478,-500.0,0.00025573,2]
[340197369,1728822632488,-500.0,0.00025573,2]
[340197371,1728822632497,-500.5725392,0.00025573,2]
[340197373,1728822632506,-500.0,0.00025573,2]
[340197375,1728822632517,-500.0,0.00025573,2]
[340197377,1728822632526,-585.09095661,0.00025573,2]
[340197379,1728822632536,-500.0,0.00025573,2]
[340197381,1728822632545,-152.0,0.0002565,2]
[340197383,1728822632555,-166.666666,0.00025943,2]
[340197385,1728822632564,-6920.36315195,0.00026,120]
[340197387,1728822632573,-695.234071,0.00026127,2]
[340197389,1728822632582,-500.0,0.00026233,2]
[340197390,1728822632591,-500.0,0.00026233,2]
[340197393,1728822632601,-501.51851618,0.00026233,2]
[340197395,1728822632611,-250.0,0.00026256,2]
[340197397,1728822632621,-250.0,0.00026328,2]
[340197399,1728822632631,-472.46842627,0.00026348,2]
[340197401,1728822632640,-250.0,0.000264,2]
[340197403,1728822632650,-250.0,0.00026472,2]
[340197404,1728822632666,-7458.94652043,0.0002649,2]
[340197406,1728822632676,-250.0,0.00026544,2]
[340197408,1728822632688,-166.666666,0.00026597,2]
[340197410,1728822632700,-250.0,0.00026616,2]
[340197413,1728822632710,-250.0,0.00026688,2]
[340197414,1728822632720,-250.0,0.0002676,2]
[340197416,1728822632729,-250.0,0.00026832,2]
[340197418,1728822632739,-1227.26940913,0.00026838,10]
[340197448,1728822638511,-500.0,0.00025573,2]
[340197449,1728822638521,-500.0,0.00025999,2]
[340197450,1728822638531,-500.0,0.00025999,2]
[340197451,1728822638542,-500.0,0.00025999,2]
[340197452,1728822638555,-500.0,0.00025999,2]
[340197453,1728822638566,-500.0,0.00025999,2]
[340197454,1728822638578,-500.0,0.00025999,2]
[340197455,1728822638589,-500.0,0.00025999,2]
[340197456,1728822638600,-500.0,0.00025999,2]
[340197457,1728822638611,-500.0,0.00025999,2]
[340197458,1728822638622,-500.0,0.00025999,2]
[340197459,1728822638632,-500.0,0.00025999,2]
[340197460,1728822638642,-537.0259467,0.00025999,2]
[340197461,1728822638652,-500.0,0.00025999,2]
[340197462,1728822638663,-500.0,0.00025999,2]
[340197463,1728822638674,-500.0,0.00025999,2]
[340197464,1728822638685,-500.0,0.00025999,2]
[340197465,1728822638695,-500.0,0.00025999,2]
[340197466,1728822638705,-240.02197827,0.00025999,2]
[340197467,1728822638717,-500.0,0.00025999,2]
[340197468,1728822638728,-500.0,0.00025999,2]
[340197469,1728822638738,-500.0,0.00025999,2]
[340197471,1728822638749,-500.0,0.00025999,2]
[340197473,1728822638759,-500.0,0.00025999,2]
[340197475,1728822638769,-500.0,0.00025999,2]
[340197476,1728822638781,-500.0,0.00025999,2]
[340197477,1728822638791,-500.0,0.00025999,2]
[340197479,1728822638803,-462.18488026,0.00025999,2]
[340197481,1728822638812,-500.0,0.00025999,2]
[340197483,1728822638824,-500.0,0.00025999,2]
[340197486,1728822638835,-500.0,0.00025999,2]
[340197488,1728822638846,-500.0,0.00025999,2]
[340197490,1728822638857,-500.0,0.00025999,2]
[340197492,1728822638867,-500.0,0.00025999,2]
[340197493,1728822638876,-500.0,0.00025999,2]
[340197494,1728822638886,-500.0,0.00025999,2]
[340197495,1728822638897,-500.0,0.00025999,2]
[340197496,1728822638908,-500.0,0.00025999,2]
[340197497,1728822638922,-500.0,0.00025999,2]
[340197498,1728822638932,-500.0,0.00025999,2]
[340197499,1728822638942,-500.0,0.00025999,2]
[340197500,1728822638953,-500.0,0.00025999,2]
[340197501,1728822638963,-500.0,0.00025999,2]
[340197502,1728822638972,-500.0,0.00025999,2]
[340197503,1728822638983,-500.0,0.00025999,2]
[340197504,1728822638992,-500.0,0.00025999,2]
[340197505,1728822639002,-500.0,0.00025999,2]
[340197506,1728822639011,-500.0,0.00025999,2]
[340197507,1728822639020,-500.0,0.00025999,2]
[340197508,1728822639031,-500.0,0.00025999,2]
[340197509,1728822639043,-500.0,0.00025999,2]
[340197510,1728822639053,-500.0,0.00025999,2]
[340197511,1728822639063,-500.0,0.00025999,2]
[340197512,1728822639075,-500.0,0.00025999,2]
[340197513,1728822639086,-581.88849269,0.00025999,2]
[340197514,1728822639096,-500.0,0.00025999,2]
[340197515,1728822639106,-500.0,0.00025999,2]
[340197516,1728822639116,-500.0,0.00025999,2]
[340197517,1728822639127,-500.0,0.00025999,2]
[340197518,1728822639210,-500.0,0.00025999,2]
[340197519,1728822639223,-500.0,0.00025999,2]
[340197520,1728822639234,-500.0,0.00025999,2]
[340197521,1728822639243,-500.0,0.00025999,2]
[340197522,1728822639254,-500.0,0.00025999,2]
[340197523,1728822639264,-500.0,0.00025999,2]
[340197524,1728822639277,-500.0,0.00025999,2]
[340197525,1728822639287,-500.0,0.00025999,2]
[340197526,1728822639299,-500.0,0.00025999,2]
[340197527,1728822639311,-500.0,0.00025999,2]
[340197528,1728822639323,-167.27122511,0.00025999,2]
[340197529,1728822639334,-500.0,0.00025999,2]
[340197530,1728822639345,-500.0,0.00025999,2]
[340197531,1728822639358,-500.0,0.00025999,2]
[340197532,1728822639370,-500.0,0.00025999,2]
[340197533,1728822639381,-500.0,0.00025999,2]
[340197534,1728822639392,-500.0,0.00025999,2]
[340197535,1728822639403,-500.0,0.00025999,2]
[340197536,1728822639412,-500.0,0.00025999,2]
[340197537,1728822639422,-500.0,0.00025999,2]
[340197538,1728822639434,-500.0,0.00025999,2]
[340197539,1728822639445,-423.00163856,0.00025999,2]
[340197540,1728822639455,-500.0,0.00025999,2]
[340197541,1728822639465,-500.0,0.00025999,2]
[340197542,1728822639476,-500.0,0.00025999,2]
[340197543,1728822639486,-500.0,0.00025999,2]
[340197544,1728822639495,-500.0,0.00025999,2]
[340197545,1728822639504,-500.0,0.00025999,2]
[340197546,1728822639516,-500.0,0.00025999,2]
[340197547,1728822639529,-500.0,0.00025999,2]
[340197548,1728822639540,-500.0,0.00025999,2]
[340197549,1728822639551,-500.0,0.00025999,2]
[340197550,1728822639561,-500.0,0.00025999,2]
[340197551,1728822639571,-500.0,0.00025999,2]
[340197552,1728822639581,-500.0,0.00025999,2]
[340197553,1728822639591,-500.0,0.00025999,2]
[340197554,1728822639602,-500.0,0.00025999,2]
[340197555,1728822639612,-500.0,0.00025999,2]
[340197556,1728822639624,-500.0,0.00025999,2]
[340197557,1728822639635,-500.0,0.00025999,2]
[340197558,1728822639644,-500.0,0.00025999,2]
[340197559,1728822639656,-500.0,0.00025999,2]
[340197560,1728822639667,-500.0,0.00025999,2]
[340197561,1728822639677,-500.0,0.00025999,2]
[340197562,1728822639688,-500.0,0.00025999,2]
[340197563,1728822639699,-500.0,0.00025999,2]
[340197564,1728822639711,-500.0,0.00025999,2]
[340197565,1728822639721,-500.0,0.00025999,2]
[340197566,1728822639731,-500.0,0.00025999,2]
[340197567,1728822639741,-500.0,0.00025999,2]
[340197568,1728822639752,-500.0,0.00025999,2]
[340197569,1728822639763,-500.0,0.00025999,2]
[340197570,1728822639772,-246.66059087,0.00026838,10]
[340197571,1728822639782,-1228.28,0.00026838,10]
[340197572,1728822639791,-1023.57,0.00026838,10]
[340197573,1728822639800,-295.04489915,0.00026847,2]
[340197574,1728822639809,-281.41908908,0.00026847,2]
[340197575,1728822639819,-568.70910154,0.00026847,2]
[340197576,1728822639828,-409.41568999,0.00026847,2]
[340197577,1728822639837,-280.49774371,0.00026847,2]
[340197578,1728822639846,-250.0,0.00026904,2]
[340197579,1728822639856,-1000.0,0.00026942,2]
[340197580,1728822639865,-1000.0,0.00026942,2]
[340197581,1728822639875,-663.66229541,0.00026942,2]
[340197582,1728822639884,-500.0,0.00026942,2]
[340197583,1728822639893,-250.0,0.00026976,2]
[340197584,1728822639902,-250.0,0.00027048,2]
[340197585,1728822639913,-250.0,0.0002712,2]
[340197586,1728822639923,-250.0,0.00027192,2]
[340197587,1728822639932,-166.666666,0.00027251,2]
[340197588,1728822639942,-250.0,0.00027264,2]
[340197589,1728822639951,-892.81909274,0.00027297,2]
[340197590,1728822639960,-250.0,0.00027336,2]
[340197591,1728822639969,-1418.32014621,0.00027393,2]
[340197592,1728822639978,-500.0,0.00027397,2]
[340197593,1728822639987,-500.0,0.00027397,2]
[340197594,1728822639996,-458.99992926,0.00027397,2]
[340197595,1728822640006,-500.0,0.00027397,2]
[340197596,1728822640015,-500.0,0.00027397,2]
[340197597,1728822640024,-500.0,0.00027397,2]
[340197598,1728822640033,-500.0,0.00027397,2]
[340197599,1728822640043,-500.0,0.00027397,2]
[340197600,1728822640052,-500.0,0.00027397,2]
[340197601,1728822640062,-500.0,0.00027397,2]
[340197602,1728822640073,-500.0,0.00027397,2]
[340197603,1728822640082,-500.0,0.00027397,2]
[340197604,1728822640091,-500.0,0.00027397,2]
[340197605,1728822640100,-500.0,0.00027397,2]
[340197606,1728822640109,-494.618515,0.00027397,2]
[340197607,1728822640118,-250.0,0.00027408,2]
[340197608,1728822640128,-267.54744929,0.00027473,5]
[340197609,1728822640137,-250.0,0.0002748,2]
[340197610,1728822640146,-39503.4884006,0.00027483,4]
[340197611,1728822640155,-7938.13175052,0.00027483,4]
[340197612,1728822640165,-24900.0,0.00027495,2]
[340197613,1728822640174,-24275.30632518,0.000275,2]
[340197614,1728822640183,-250.0,0.00027552,2]
[340197615,1728822640192,-1000.0,0.00027603,5]
[340197616,1728822640201,-918.72493857,0.00027603,5]
[340197617,1728822640210,-250.0,0.00027624,2]
[340197618,1728822640219,-420.0,0.00027663,2]
[340197619,1728822640228,-152.0,0.000279,7]
[340197620,1728822640237,-1158.90904515,0.0002799,7]
[340197621,1728822640247,-500.0,0.00028038,5]